bitfinex/quotes_BTCUSD_20220213
["timestamp","ask_amount","ask_price","bid_price","bid_amount"]
[1644776027530,0.2678327,42379.0,42378.0,0.27402354]
[1644776028776,0.3268497,42379.0,42377.0,0.44420505]
[1644776029376,0.3268497,42379.0,42378.0,0.25526924]
[1644776029781,0.3268497,42379.0,42378.0,0.25589319]
[1644776029977,0.3268497,42379.0,42377.0,0.44420505]
[1644776030377,0.3858687,42379.0,42377.0,0.44420505]
[1644776031478,0.3858687,42379.0,42378.0,0.25578388]
[1644776031733,0.3858687,42379.0,42377.0,0.44420505]
[1644776031927,0.3858687,42379.0,42378.0,0.25567066]
[1644776032126,0.3858687,42379.0,42377.0,0.44420505]
[1644776032528,0.3858687,42379.0,42378.0,0.255065]
[1644776032727,0.3858687,42379.0,42378.0,0.25499187]
[1644776032928,0.3858687,42379.0,42377.0,0.44420505]
[1644776034838,0.2088167,42379.0,42378.0,0.26718878]
[1644776035676,0.2038167,42379.0,42378.0,0.26718878]
[1644776036276,0.009449,42383.0,42378.0,0.26718878]
[1644776036776,0.009449,42383.0,42378.0,0.26756095]
[1644776036975,0.059013,42382.0,42381.0,0.07639358]
[1644776037176,0.4693526,42387.0,42381.0,0.34464821]
[1644776037480,0.4693526,42387.0,42386.0,0.22554343]
[1644776037676,0.236049,42387.0,42386.0,0.22554343]
[1644776037877,0.118023,42387.0,42386.0,0.22554343]
[1644776038278,0.450535,42387.0,42386.0,0.22554343]
[1644776038479,0.45044846,42387.0,42386.0,0.22554343]
[1644776039079,0.50945846,42387.0,42386.0,0.22554343]
[1644776039323,0.17694646,42387.0,42386.0,0.22554343]
[1644776039523,0.50945846,42387.0,42386.0,0.22554343]
[1644776040724,0.17694646,42387.0,42386.0,0.22554343]
[1644776041327,0.118021,42388.0,42386.0,0.22554343]
[1644776042226,0.0999,42390.0,42387.0,0.25443366]
[1644776042631,0.1186,42393.0,42387.0,0.25443366]
[1644776042826,0.1186,42393.0,42390.0,0.06335649]
[1644776042827,0.2186,42393.0,42390.0,0.06335649]
[1644776043083,0.1,42393.0,42386.0,0.22554343]
[1644776043283,0.118002,42391.0,42387.0,0.25574459]
[1644776043484,0.059002,42391.0,42387.0,0.25574459]
[1644776043685,0.059002,42391.0,42386.0,0.22554343]
[1644776044086,0.059004,42390.0,42386.0,0.22554343]
[1644776044286,0.11801,42390.0,42387.0,0.25910577]
[1644776044486,0.059006,42389.0,42387.0,0.25910577]
[1644776044685,0.059006,42389.0,42386.0,0.22554343]
[1644776044888,0.059006,42389.0,42387.0,0.25602319]
[1644776045587,0.059006,42389.0,42386.0,0.22554343]
[1644776046735,0.059006,42389.0,42387.0,0.25898244]
[1644776046930,0.118012,42389.0,42386.0,0.22554343]
[1644776047129,0.059005,42387.0,42386.0,0.22554343]
[1644776049329,0.059005,42388.0,42386.0,0.48958791]
[1644776049730,0.059005,42388.0,42387.0,0.25766846]
[1644776049931,0.059005,42388.0,42386.0,0.22554343]
[1644776051279,0.059001,42389.0,42387.0,0.26050054]
[1644776052183,0.059455,42398.0,42388.0,1.0]
[1644776052382,0.059455,42398.0,42392.0,0.05]
[1644776052586,0.00026755,42400.0,42395.0,0.05]
[1644776052780,0.00148775,42405.0,42396.0,0.3473]
[1644776052781,0.00026755,42404.0,42396.0,0.3473]
[1644776052986,0.00148775,42405.0,42396.0,0.3473]
[1644776053181,0.00026755,42404.0,42397.0,0.24836856]
[1644776053383,0.00148775,42405.0,42399.0,0.058979]
[1644776053384,0.00026755,42405.0,42399.0,0.058979]
[1644776053784,0.01208775,42407.0,42399.0,0.058979]
[1644776053984,0.00026755,42406.0,42399.0,0.358979]
[1644776054232,0.0023762,42407.0,42399.0,0.358979]
[1644776054233,0.00264375,42407.0,42399.0,0.417955]
[1644776054426,0.00264375,42407.0,42406.0,0.21976996]
[1644776054427,0.0023762,42407.0,42406.0,0.21976996]
[1644776054632,0.00264375,42407.0,42406.0,0.21976996]
[1644776054827,0.0023762,42407.0,42406.0,0.21976996]
[1644776055028,0.002489,42408.0,42406.0,0.21976996]
[1644776055828,0.0023762,42408.0,42405.0,0.08615787]
[1644776056730,0.0023762,42408.0,42402.0,0.2931037]
[1644776056930,0.00264375,42408.0,42403.0,0.22263735]
[1644776057132,0.0023762,42408.0,42403.0,0.22263735]
[1644776057330,0.00264375,42408.0,42403.0,0.22263735]
[1644776057731,0.00264375,42408.0,42404.0,0.08944865]
[1644776058374,0.06178046,42408.0,42404.0,0.08934165]
[1644776058774,0.06178046,42408.0,42402.0,0.2931037]
[1644776058775,0.00280246,42408.0,42402.0,0.2931037]
[1644776058977,0.332512,42407.0,42400.0,0.27863951]
[1644776059176,0.332512,42407.0,42397.0,0.3]
[1644776059177,0.38277955,42407.0,42397.0,0.3]
[1644776059376,0.391503,42398.0,42397.0,0.3]
[1644776059675,0.391503,42398.0,42389.0,0.4209]
[1644776059676,0.158891,42398.0,42389.0,0.4209]
[1644776059874,0.26625516,42396.0,42391.0,0.07242874]
[1644776060075,0.26625516,42396.0,42388.0,0.21400811]
[1644776060276,0.32525016,42396.0,42388.0,0.21400811]
[1644776060975,0.058998,42394.0,42388.0,0.21400811]
[1644776061474,0.058998,42394.0,42386.0,0.02879]
[1644776061743,0.28814878,42393.0,42386.0,0.02879]
[1644776062032,0.059006,42392.0,42386.0,0.02879]
[1644776062730,0.118012,42392.0,42386.0,0.02879]
[1644776062931,0.118012,42392.0,42389.0,0.08322435]
[1644776062932,0.059006,42392.0,42389.0,0.08322435]
[1644776063132,0.0023762,42391.0,42389.0,0.08322435]
[1644776063933,0.059002,42390.0,42386.0,0.02879]
[1644776065478,0.059002,42390.0,42387.0,0.0813218]
[1644776066282,0.059002,42390.0,42386.0,0.02879]
[1644776066484,0.059002,42390.0,42384.0,0.18925392]
[1644776066683,0.059002,42390.0,42384.0,0.18966254]
[1644776067681,0.059002,42390.0,42384.0,0.18925392]
[1644776067882,0.059002,42390.0,42384.0,0.18966254]
[1644776068686,0.059002,42390.0,42384.0,0.26840637]
[1644776068883,0.059002,42390.0,42384.0,0.26799775]
[1644776069083,0.059002,42390.0,42384.0,0.26840637]
[1644776069548,0.059002,42390.0,42384.0,0.18966254]
[1644776069549,0.23073787,42389.0,42384.0,0.18966254]
[1644776069747,0.059007,42388.0,42384.0,0.18966254]
[1644776070143,0.059007,42388.0,42384.0,0.18925392]
[1644776070344,0.059007,42388.0,42384.0,0.18966277]
[1644776070843,0.059007,42388.0,42384.0,0.27379719]
[1644776071047,0.118014,42388.0,42384.0,0.27379719]
[1644776071245,0.059007,42388.0,42384.0,0.27379719]
[1644776071445,0.059007,42388.0,42384.0,0.27338834]
[1644776071648,0.059007,42388.0,42384.0,0.27379719]
[1644776073777,0.059007,42388.0,42384.0,0.27338834]
[1644776073975,0.059007,42388.0,42384.0,0.27379713]
[1644776074378,0.118013,42388.0,42384.0,0.07359798]
[1644776074777,0.059007,42388.0,42384.0,0.07359798]
[1644776074977,0.059007,42388.0,42384.0,0.07318919]
[1644776075178,0.059007,42388.0,42384.0,0.07358417]
[1644776077332,0.059007,42388.0,42384.0,0.07318919]
[1644776077530,0.059007,42388.0,42384.0,0.07358419]
[1644776077931,0.118012,42388.0,42384.0,0.07358419]
[1644776078532,0.118012,42388.0,42384.0,0.07318919]
[1644776078731,0.118012,42388.0,42384.0,0.07356173]
[1644776079333,0.059007,42388.0,42384.0,0.07356173]
[1644776079732,0.059007,42388.0,42384.0,0.07318919]
[1644776079935,0.0613772,42390.0,42384.0,0.07356173]
[1644776080135,0.0023762,42390.0,42384.0,0.05356173]
[1644776080483,0.1203852,42390.0,42384.0,0.05356173]
[1644776080882,0.1203852,42390.0,42384.0,0.05318919]
[1644776081082,0.1203852,42390.0,42384.0,0.05356181]
[1644776081487,0.11801,42388.0,42384.0,0.05356181]
[1644776082185,0.11801,42388.0,42384.0,0.05318919]
[1644776082484,0.11801,42388.0,42384.0,0.05356185]
[1644776083388,0.11801,42388.0,42384.0,0.05318919]
[1644776083587,0.11801,42388.0,42384.0,0.05356185]
[1644776084630,0.11801,42388.0,42384.0,0.05318919]
[1644776084830,0.11801,42388.0,42384.0,0.05356184]
[1644776085429,0.059003,42388.0,42384.0,0.05356184]
[1644776085829,0.059003,42388.0,42384.0,0.05318919]
[1644776086030,0.059003,42388.0,42384.0,0.05356181]
[1644776087029,0.118007,42388.0,42384.0,0.05318919]
[1644776087230,0.118007,42388.0,42384.0,0.05356181]
[1644776088081,0.1177695,42388.0,42384.0,0.05318919]
[1644776088281,0.1177695,42388.0,42384.0,0.05356181]
[1644776088581,0.059003,42388.0,42384.0,0.05356181]
[1644776089284,0.059003,42388.0,42384.0,0.05318919]
[1644776089482,0.0613762,42390.0,42384.0,0.05356181]
[1644776089882,0.0023762,42390.0,42384.0,0.05356181]
[1644776090083,0.0023762,42390.0,42384.0,0.08836964]
[1644776090483,0.0023762,42390.0,42384.0,0.08799702]
[1644776090684,0.0023762,42390.0,42384.0,0.08836964]
[1644776091284,0.059001,42389.0,42384.0,0.08836964]
[1644776091485,0.0023762,42390.0,42384.0,0.08836964]
[1644776091728,0.0023762,42390.0,42384.0,0.14699602]
[1644776091933,0.0023762,42390.0,42384.0,0.14736864]
[1644776092131,0.0023762,42390.0,42384.0,0.08836964]
[1644776092729,0.0011881,42390.0,42384.0,0.08836964]
[1644776092929,0.0011881,42390.0,42384.0,0.08799702]
[1644776093130,0.0011881,42390.0,42384.0,0.08836964]
[1644776093329,0.0601871,42390.0,42384.0,0.08836964]
[1644776094131,0.0601871,42390.0,42384.0,0.08799702]
[1644776094330,0.0601871,42390.0,42384.0,0.08836964]
[1644776094932,0.0601871,42390.0,42384.0,0.14736864]
[1644776095335,0.0601871,42390.0,42384.0,0.08799702]
[1644776095577,0.059001,42389.0,42384.0,0.08836964]
[1644776096280,0.059001,42389.0,42384.0,0.05356181]
[1644776096478,0.0011881,42390.0,42384.0,0.05356181]
[1644776096479,0.0011881,42390.0,42384.0,0.05318919]
[1644776096678,0.0011881,42390.0,42384.0,0.05356179]
[1644776097378,0.0601871,42390.0,42384.0,0.05356179]
[1644776097778,0.0601871,42390.0,42384.0,0.05318919]
[1644776097978,0.0011881,42390.0,42384.0,0.05356179]
[1644776098579,0.0601901,42390.0,42384.0,0.05356179]
[1644776098978,0.0601901,42390.0,42384.0,0.05318919]
[1644776099233,0.0601901,42390.0,42384.0,0.05356179]
[1644776099434,0.059001,42389.0,42384.0,0.05356179]
[1644776100236,0.0011881,42390.0,42384.0,0.05318919]
[1644776100435,0.0011881,42390.0,42384.0,0.05356181]
[1644776100836,0.0601881,42390.0,42384.0,0.05356181]
[1644776101438,0.0011881,42390.0,42384.0,0.05318919]
[1644776101635,0.0011881,42390.0,42384.0,0.05356182]
[1644776102542,0.059001,42389.0,42384.0,0.05318919]
[1644776102738,0.0011881,42390.0,42384.0,0.05356182]
[1644776103188,0.0011881,42390.0,42386.0,0.24520966]
[1644776103791,0.0011881,42390.0,42386.0,0.36319266]
[1644776103991,0.0011881,42390.0,42386.0,0.50420166]
[1644776104190,0.0011881,42390.0,42386.0,0.50150166]
[1644776104390,0.00026755,42397.0,42390.0,0.0023762]
[1644776104592,0.00026755,42393.0,42390.0,0.0023762]
[1644776104889,0.00026755,42397.0,42390.0,0.0613632]
[1644776105092,0.05925555,42400.0,42391.0,0.25826033]
[1644776105291,0.00026755,42399.0,42391.0,0.25826033]
[1644776105489,0.00026755,42399.0,42390.0,0.0023762]
[1644776105490,0.20279585,42398.0,42390.0,0.0023762]
[1644776105894,0.2620514,42398.0,42390.0,0.0023762]
[1644776106090,0.2620514,42398.0,42392.0,0.07107418]
[1644776106091,0.3210424,42398.0,42392.0,0.07107418]
[1644776106291,0.058997,42397.0,42392.0,0.07107418]
[1644776106490,0.05926455,42397.0,42392.0,0.07107418]
[1644776107134,0.058997,42396.0,42390.0,0.0023762]
[1644776107333,0.05926455,42396.0,42390.0,0.0023762]
[1644776108134,0.058997,42395.0,42390.0,0.09135678]
[1644776108334,0.05926455,42395.0,42390.0,0.09135678]
[1644776108734,0.05926455,42395.0,42390.0,0.09075078]
[1644776108735,0.058997,42395.0,42390.0,0.09075078]
[1644776109137,0.058998,42394.0,42392.0,0.08975616]
[1644776109336,0.058998,42393.0,42392.0,0.08975616]
[1644776112788,0.00026755,42395.0,42392.0,0.08975616]
[1644776112992,0.00026755,42399.0,42392.0,0.08975616]
[1644776113191,0.00026755,42396.0,42392.0,0.08975616]
[1644776113389,0.30026755,42400.0,42392.0,0.08975616]
[1644776113689,0.00026755,42399.0,42392.0,0.08975616]
[1644776113889,0.25173157,42400.0,42393.0,0.25245384]
[1644776114090,0.05899,42398.0,42393.0,0.25245384]
[1644776114533,0.05925755,42398.0,42396.0,0.08975616]
[1644776114735,0.00026755,42399.0,42397.0,0.08128643]
[1644776114933,0.00026755,42400.0,42397.0,0.08128643]
[1644776115135,0.00026755,42402.0,42397.0,0.08128643]
[1644776115334,0.058986,42401.0,42397.0,0.08128643]
[1644776115734,0.058986,42401.0,42397.0,0.33669894]
[1644776115932,0.058986,42401.0,42397.0,0.33852255]
[1644776116234,0.058986,42401.0,42397.0,0.33629458]
[1644776116435,0.11824155,42401.0,42397.0,0.08128643]
[1644776116634,0.058987,42400.0,42397.0,0.33684423]
[1644776117033,0.0999,42403.0,42397.0,0.33684423]
[1644776117034,0.00026755,42402.0,42397.0,0.33684423]
[1644776117234,0.00026755,42401.0,42397.0,0.08128643]
[1644776117434,0.05925555,42402.0,42397.0,0.33724584]
[1644776117635,0.00026755,42401.0,42397.0,0.34023314]
[1644776117834,0.05925555,42402.0,42397.0,0.08128643]
[1644776118087,0.00026755,42401.0,42397.0,0.33960188]
[1644776118284,0.00026755,42402.0,42397.0,0.45755588]
[1644776118485,0.00026755,42403.0,42397.0,0.39857888]
[1644776118684,0.00026755,42402.0,42397.0,0.39857888]
[1644776118883,0.00026755,42407.0,42397.0,0.39857888]
[1644776119084,0.00083143,42408.0,42406.0,0.21843768]
[1644776119384,0.1185,42409.0,42407.0,0.06928664]
[1644776119583,0.00026844,42409.0,42407.0,0.06928664]
[1644776119784,0.00037413,42409.0,42408.0,0.08975616]
[1644776120587,0.117951,42410.0,42408.0,0.08975616]
[1644776121385,0.176926,42410.0,42408.0,0.08975616]
[1644776121584,0.276826,42410.0,42408.0,0.08975616]
[1644776122434,0.276826,42410.0,42408.0,0.15686344]
[1644776122636,0.176926,42410.0,42408.0,0.08975616]
[1644776122836,0.276826,42410.0,42408.0,0.08975616]
[1644776123238,0.176926,42410.0,42408.0,0.08975616]
[1644776123838,0.276826,42410.0,42408.0,0.08975616]
[1644776124237,0.176926,42410.0,42408.0,0.08975616]
[1644776124853,0.176926,42410.0,42399.0,0.32578895]
[1644776125037,0.058978,42407.0,42399.0,0.32578895]
[1644776125239,0.058978,42407.0,42401.0,0.31664757]
[1644776125487,0.058978,42407.0,42402.0,0.26275055]
[1644776125688,0.058978,42407.0,42398.0,0.29261207]
[1644776125993,0.05924644,42407.0,42398.0,0.29261207]
[1644776126189,0.22858691,42406.0,42398.0,0.29261207]
[1644776126388,0.058983,42404.0,42398.0,0.29261207]
[1644776126786,0.05925144,42404.0,42398.0,0.29261207]
[1644776127187,0.05925144,42404.0,42401.0,0.08534639]
[1644776127392,0.058983,42404.0,42398.0,0.29261207]
[1644776127587,0.05925144,42404.0,42398.0,0.29261207]
[1644776127788,0.058983,42404.0,42398.0,0.29261207]
[1644776127989,0.058983,42404.0,42396.0,0.25571992]
[1644776128492,0.058985,42403.0,42398.0,0.07196782]
[1644776128689,0.058984,42402.0,42398.0,0.07196782]
[1644776128889,0.05925244,42402.0,42398.0,0.07196782]
[1644776129091,0.00026844,42403.0,42399.0,0.25444175]
[1644776129331,0.22858691,42406.0,42399.0,0.25444175]
[1644776129332,0.00026844,42404.0,42399.0,0.25444175]
[1644776129530,0.00026844,42405.0,42399.0,0.25444175]
[1644776129735,0.22858691,42406.0,42399.0,0.25444175]
[1644776129931,0.00026844,42405.0,42399.0,0.25444175]
[1644776130134,0.05898,42405.0,42402.0,0.08975616]
[1644776130333,0.00026844,42405.0,42402.0,0.08975616]
[1644776130536,0.00026844,42406.0,42402.0,0.08975616]
[1644776130734,0.00064318,42408.0,42402.0,0.08975616]
[1644776130936,0.00026844,42407.0,42402.0,0.08975616]
[1644776131138,0.058977,42407.0,42403.0,0.48934171]
[1644776131337,0.05924544,42407.0,42403.0,0.48934171]
[1644776131736,0.058977,42407.0,42403.0,0.48934171]
[1644776132336,0.05924544,42407.0,42403.0,0.48934171]
[1644776132535,0.00026844,42407.0,42403.0,0.48934171]
[1644776132736,0.05924144,42409.0,42403.0,0.48934171]
[1644776132981,0.00026844,42407.0,42403.0,0.48934171]
[1644776133181,0.00037266,42408.0,42403.0,0.48934171]
[1644776133383,0.00026844,42407.0,42403.0,0.48934171]
[1644776133686,0.0006411,42408.0,42403.0,0.48934171]
[1644776133883,0.00026844,42407.0,42403.0,0.48934171]
[1644776134083,0.058973,42409.0,42404.0,0.0473]
[1644776134084,0.00026844,42409.0,42404.0,0.0473]
[1644776134286,0.001,42414.0,42404.0,0.0473]
[1644776134287,0.00064117,42408.0,42404.0,0.0473]
[1644776134483,0.00037273,42408.0,42404.0,0.0473]
[1644776134886,0.00037273,42408.0,42405.0,0.07038671]
[1644776135084,0.00026844,42412.0,42406.0,0.106264]
[1644776135286,0.00026844,42413.0,42411.0,0.24233279]
[1644776135487,0.00276246,42414.0,42411.0,0.2422662]
[1644776135688,0.00249402,42414.0,42411.0,0.2422662]
[1644776136487,0.001,42414.0,42411.0,0.2422662]
[1644776136932,0.001,42414.0,42413.0,0.06311393]
[1644776137732,0.001,42414.0,42411.0,0.2422662]
[1644776137934,0.059968,42414.0,42411.0,0.2422662]
[1644776138936,0.059968,42414.0,42412.0,0.06887746]
[1644776140792,0.059968,42414.0,42413.0,0.08975616]
[1644776141790,0.001,42414.0,42413.0,0.08975616]
[1644776143394,0.001,42414.0,42413.0,0.3456781]
[1644776144647,0.001,42414.0,42413.0,0.34858089]
[1644776145248,0.001,42414.0,42413.0,0.08975616]
[1644776145447,0.001,42414.0,42413.0,0.34623263]
[1644776145847,0.001,42414.0,42413.0,0.08975616]
[1644776146650,0.001,42414.0,42413.0,0.35357774]
[1644776147050,0.001,42414.0,42413.0,0.08975616]
[1644776148089,0.1009,42414.0,42413.0,0.08975616]
[1644776149690,0.33741367,42414.0,42413.0,0.08975616]
[1644776150891,0.1009,42414.0,42413.0,0.08975616]
[1644776153040,0.159868,42414.0,42413.0,0.08975616]
[1644776153241,0.1009,42414.0,42413.0,0.08975616]
[1644776157188,0.1009,42414.0,42413.0,0.08965383]
[1644776157383,0.1009,42414.0,42413.0,0.04737808]
[1644776157884,0.1009,42414.0,42413.0,0.08965383]
[1644776158084,0.001,42414.0,42413.0,0.08965383]
[1644776160539,0.1009,42414.0,42413.0,0.08965383]
[1644776161937,0.1009,42414.0,42413.0,0.04227575]
[1644776162138,0.1009,42414.0,42413.0,0.08465383]
[1644776167135,0.38089292,42414.0,42413.0,0.08465383]
[1644776169438,0.55781292,42414.0,42413.0,0.08465383]
[1644776172685,0.89032492,42414.0,42413.0,0.08465383]
[1644776172887,0.55781292,42414.0,42413.0,0.08465383]
[1644776173087,0.89032492,42414.0,42413.0,0.08465383]
[1644776173286,0.55781292,42414.0,42413.0,0.08465383]
[1644776173486,0.89032492,42414.0,42413.0,0.08465383]
[1644776173688,0.55781292,42414.0,42413.0,0.08465383]
[1644776173888,0.89032492,42414.0,42413.0,0.08465383]
[1644776174090,0.55781292,42414.0,42413.0,0.08465383]
[1644776174336,0.89032492,42414.0,42413.0,0.08465383]
[1644776174537,0.55781292,42414.0,42413.0,0.08465383]
[1644776175438,0.89032492,42414.0,42413.0,0.08465383]
[1644776175635,0.55781292,42414.0,42413.0,0.08465383]
[1644776176541,1.04032492,42414.0,42413.0,0.08465383]
[1644776176937,1.15392757,42414.0,42413.0,0.08465383]
[1644776178188,0.82141557,42414.0,42413.0,0.08465383]
[1644776178387,1.15392757,42414.0,42413.0,0.08465383]
[1644776178587,1.04032492,42414.0,42413.0,0.08465383]
[1644776178788,1.15392757,42414.0,42413.0,0.08465383]
[1644776178989,0.72141557,42414.0,42413.0,0.08465383]
[1644776179191,0.39142265,42414.0,42413.0,0.08465383]
[1644776179390,0.27782,42414.0,42413.0,0.08465383]
[1644776180190,0.55837237,42414.0,42413.0,0.08465383]
[1644776180595,0.89088437,42414.0,42413.0,0.08465383]
[1644776180792,0.56314749,42414.0,42413.0,0.08465383]
[1644776180991,0.67675014,42414.0,42413.0,0.08465383]
[1644776181192,0.56314749,42414.0,42413.0,0.08465383]
[1644776181838,0.27782,42414.0,42413.0,0.08465383]
[1644776182240,0.56714935,42414.0,42413.0,0.08465383]
[1644776182638,0.56714935,42414.0,42413.0,0.08456879]
[1644776182843,1.010332,42414.0,42413.0,0.04237808]
[1644776183040,1.107632,42414.0,42395.0,0.26507308]
[1644776183245,0.058989,42408.0,42395.0,0.26507308]
[1644776183443,0.058991,42405.0,42394.0,0.7495]
[1644776183640,0.058991,42405.0,42394.0,0.3765]
[1644776183841,0.058991,42405.0,42394.0,0.56877134]
[1644776183842,0.41408339,42404.0,42394.0,0.56877134]
[1644776184139,0.41408339,42404.0,42394.0,0.19227134]
[1644776184339,0.117985,42402.0,42394.0,0.19227134]
[1644776184538,0.058992,42402.0,42394.0,0.19227134]
[1644776184740,0.05899,42401.0,42394.0,0.19227134]
[1644776185909,0.058991,42400.0,42394.0,0.19227134]
[1644776186109,0.19520198,42397.0,42390.0,0.1224702]
[1644776186308,0.19520198,42397.0,42390.0,0.0017702]
[1644776186309,0.4861077,42397.0,42390.0,0.0017702]
[1644776186507,0.19520198,42397.0,42390.0,0.0017702]
[1644776187107,0.058997,42391.0,42390.0,0.0017702]
[1644776187309,0.31319598,42397.0,42394.0,0.02391129]
[1644776187310,0.33840147,42395.0,42394.0,0.02391129]
[1644776188308,0.22040547,42395.0,42394.0,0.02391129]
[1644776193608,0.22040547,42395.0,42394.0,0.066102]
[1644776193812,0.49914696,42395.0,42394.0,0.066102]
[1644776194408,0.22040547,42395.0,42394.0,0.066102]
[1644776201988,0.117995,42396.0,42394.0,0.066102]
[1644776202389,0.117995,42396.0,42394.0,0.02391129]
[1644776202589,0.117995,42396.0,42395.0,0.04219071]
[1644776202991,0.34745557,42396.0,42395.0,0.04219071]
[1644776207237,0.62736704,42396.0,42395.0,0.04219071]
[1644776207438,0.34745557,42396.0,42395.0,0.04219071]
[1644776207638,0.34745557,42396.0,42395.0,0.04211768]
[1644776207838,0.34745557,42396.0,42394.0,0.02391129]
[1644776208087,0.34745557,42396.0,42395.0,0.04211768]
[1644776209891,1.02325245,42396.0,42395.0,0.04211768]
[1644776210896,1.332512,42395.0,42385.0,0.00020681]
[1644776211094,0.118036,42393.0,42384.0,0.00040937]
[1644776211293,0.71220844,42392.0,42384.0,0.00040937]
[1644776211492,0.332512,42391.0,42384.0,0.00040937]
[1644776211745,0.0473,42390.0,42384.0,0.00040937]
[1644776212044,0.33138277,42387.0,42376.0,0.00020681]
[1644776212239,0.27236777,42387.0,42384.0,0.00040936]
[1644776213242,0.27236777,42387.0,42379.0,0.00020681]
[1644776213442,0.27236777,42387.0,42383.0,0.00040936]
[1644776213942,0.059015,42386.0,42383.0,0.00040936]
[1644776214142,0.177034,42386.0,42383.0,0.00040936]
[1644776214341,0.059009,42386.0,42383.0,0.00040936]
[1644776214545,0.059009,42386.0,42379.0,0.00020681]
[1644776214743,0.177035,42386.0,42382.0,0.00040937]
[1644776214944,0.45906194,42386.0,42382.0,0.00040937]
[1644776215144,0.11802,42385.0,42382.0,0.00040937]
[1644776215344,0.236063,42385.0,42382.0,0.00040937]
[1644776215791,0.22741272,42379.0,42376.0,0.00020681]
[1644776215992,0.22741272,42379.0,42375.0,0.21226875]
[1644776216292,0.22741272,42379.0,42375.0,0.21206194]
[1644776216691,0.22734605,42379.0,42375.0,0.21206194]
[1644776217194,0.059019,42378.0,42375.0,0.21247136]
[1644776217392,0.236074,42382.0,42381.0,0.19034675]
[1644776217593,0.52398412,42382.0,42381.0,0.19034675]
[1644776217792,0.52438068,42382.0,42381.0,0.19034675]
[1644776218593,0.58340068,42382.0,42381.0,0.19034675]
[1644776219267,0.91591268,42382.0,42381.0,0.19034675]
[1644776220266,1.17512981,42382.0,42381.0,0.19034675]
[1644776220466,1.32242981,42382.0,42381.0,0.19034675]
[1644776222168,1.35905763,42382.0,42381.0,0.19034675]
[1644776222371,1.32242981,42382.0,42381.0,0.19034675]
[1644776222868,1.37242981,42382.0,42381.0,0.19034675]
[1644776224292,1.37242981,42382.0,42381.0,0.06651759]
[1644776224791,1.37242981,42382.0,42379.0,0.00042645]
[1644776224792,1.441553,42381.0,42379.0,0.00042645]
[1644776224996,1.641353,42381.0,42380.0,0.00021302]
[1644776225194,1.788653,42381.0,42373.0,0.00021302]
[1644776225394,0.14006073,42375.0,42372.0,0.03011446]
[1644776225593,0.65446147,42373.0,42372.0,0.03011446]
[1644776225796,0.80446147,42373.0,42372.0,0.0099784]
[1644776225993,1.332512,42372.0,42361.0,0.01]
[1644776226395,0.118081,42370.0,42361.0,0.01]
[1644776226594,0.30050341,42364.0,42361.0,0.01]
[1644776226841,0.56448142,42364.0,42361.0,0.01]
[1644776227342,0.391556,42363.0,42361.0,0.01]
[1644776227543,0.61200483,42362.0,42361.0,0.01]
[1644776228139,2.95486383,42362.0,42361.0,0.01]
[1644776228340,2.62235183,42362.0,42361.0,0.01]
[1644776228840,0.61200483,42362.0,42361.0,0.01]
[1644776229044,0.332512,42362.0,42361.0,0.01]
[1644776229345,0.118072,42373.0,42361.0,0.01]
[1644776229543,0.2185,42377.0,42361.0,0.01]
[1644776229840,0.25878547,42375.0,42361.0,0.01]
[1644776230044,0.21128778,42370.0,42362.0,0.22166068]
[1644776230245,0.27032078,42370.0,42362.0,0.22166068]
[1644776230491,0.059037,42366.0,42363.0,0.3]
[1644776230692,0.059037,42366.0,42362.0,0.22166068]
[1644776231490,0.059037,42366.0,42362.0,0.2220914]
[1644776231892,0.059037,42366.0,42364.0,0.07674121]
[1644776232095,0.332512,42365.0,42362.0,0.00043072]
[1644776232296,0.118073,42369.0,42362.0,0.00043072]
[1644776232297,0.391557,42364.0,42362.0,0.00043072]
[1644776232495,0.059045,42364.0,42361.0,0.01]
[1644776232699,0.059045,42364.0,42361.0,0.01043072]
[1644776233094,0.20116087,42362.0,42361.0,0.01043072]
[1644776233295,0.26021087,42362.0,42361.0,0.01043072]
[1644776233794,0.26021087,42362.0,42361.0,0.01]
[1644776234944,0.59272287,42362.0,42361.0,0.01]
[1644776235145,0.26021087,42362.0,42361.0,0.01]
[1644776235349,0.59272287,42362.0,42361.0,0.01]
[1644776235646,0.98137429,42362.0,42361.0,0.01]
[1644776235845,1.08137429,42362.0,42361.0,0.01]
[1644776237047,0.79272287,42362.0,42361.0,0.01]
[1644776238086,1.08879856,42362.0,42361.0,0.01]
[1644776238387,1.1150399,42362.0,42361.0,0.01]
[1644776238587,1.07934456,42362.0,42361.0,0.01]
[1644776239987,0.95,42361.0,42359.0,0.00043073]
[1644776240189,0.78759963,42360.0,42359.0,0.00043073]
[1644776240393,1.2060922,42360.0,42359.0,0.00043073]
[1644776240589,0.98759963,42360.0,42359.0,0.00043073]
[1644776240990,0.92853663,42360.0,42351.0,0.01]
[1644776241193,0.23328526,42352.0,42351.0,0.01]
[1644776241945,0.56579726,42352.0,42351.0,0.01]
[1644776242244,0.29235226,42352.0,42351.0,0.01]
[1644776242946,0.62486426,42352.0,42351.0,0.01]
[1644776243645,0.29235226,42352.0,42351.0,0.01]
[1644776244543,0.62486426,42352.0,42351.0,0.01]
[1644776244743,0.29235226,42352.0,42351.0,0.01]
[1644776244943,0.67486426,42352.0,42351.0,0.01]
[1644776245145,0.72486426,42352.0,42351.0,0.01]
[1644776245346,0.82486426,42352.0,42351.0,0.01]
[1644776246793,0.3815,42366.0,42351.0,0.01]
[1644776246992,0.118096,42360.0,42351.0,0.01]
[1644776247191,0.059047,42360.0,42351.0,0.31]
[1644776247392,0.059047,42360.0,42351.0,0.01]
[1644776247591,0.332512,42359.0,42351.0,0.01]
[1644776247791,0.26424341,42356.0,42351.0,0.01]
[1644776247991,0.059054,42358.0,42351.0,0.01]
[1644776248195,0.32317711,42360.0,42351.0,0.01]
[1644776248396,0.1193,42364.0,42351.0,0.01042752]
[1644776248591,0.332539,42363.0,42351.0,0.01042752]
[1644776248792,0.05,42362.0,42351.0,0.01042752]
[1644776248992,0.059049,42360.0,42351.0,0.01042752]
[1644776249249,0.25532136,42357.0,42351.0,0.01042752]
[1644776249437,0.25532136,42357.0,42351.0,0.01]
[1644776249638,0.332539,42356.0,42353.0,0.00042751]
[1644776250441,0.11811,42356.0,42353.0,0.00042751]
[1644776250637,0.059054,42356.0,42352.0,0.00021226]
[1644776250841,0.059054,42356.0,42352.0,0.00042751]
[1644776251039,0.059054,42356.0,42352.0,0.00063977]
[1644776251440,0.118107,42356.0,42352.0,0.00063977]